Workbook

Sheet aggdupcontabile
C2: COMUNE DI RANZANICO
C4: PROVINCIA DI BERGAMO
A8: Nota di Aggiornamento del Documento Unico di Programmazione
E10: 2018 | F10: =E10+1 -> 2019 | H10: =F10+1 -> 2020
A15: Premessa
A16: In ottemperanza a quanto previsto dai nuovi principi contabili introdotti dal D.lgs 118/2011 e successive modifiche, è redatta la presente nota di aggiornamento dei dati contabili contenuti nel Documento Unico di Programmazione approvato dalla Giunta Comunale al fine di adeguare il contenuto alle risultanze contabili definitive del bilancio di previsione per il triennio.
A18: TRIBUTI E POLITICA TRIBUTARIA
A20: Un sistema altamente instabile
A21: Il sistema di finanziamento del bilancio risente molto sia dell'intervento legislativo in materia di trasferimenti dello stato a favore degli enti locali che, in misura sempre più grande, del carico tributario applicato sui beni immobili presenti nel territorio. Il federalismo fiscale riduce infatti il trasferimento di risorse centrali ed accentua la presenza di una politica tributaria decentrata. Il non indifferente impatto sociale e politico del regime di tassazione della proprietà immobiliare ha fatto sì che il quadro normativo di rifermento abbia subito nel corso degli anni profonde revisioni. L'ultima modifica a questo sistema si è avuta con l'introduzione dell'imposta unica comunale (IUC), i cui presupposti impositivi sono: il possesso di immobili; l’erogazione e fruizione di servizi comunali.
F23: Gettito | H23: Stima Gettito | I23: Stima Gettito | J23: Stima Gettito
C24: Tributo | F24: =E10-1 -> 2017 | H24: =F24+1 -> 2018 | I24: =H24+1 -> 2019 | J24: =I24+1 -> 2020
C25: I.M.U. | F25: =[5]ENTRATA!G13 -> 567000 | G25: =[5]ENTRATA!H13 -> 0 | H25: =[5]ENTRATA!I13 -> 560000 | I25: =[5]ENTRATA!J13 -> 561000 | J25: =[5]ENTRATA!K13 -> 562000
C26: T.A.S.I. – Tassa sui servizi comunali | F26: =[5]ENTRATA!G15 -> 0 | G26: =[5]ENTRATA!H15 -> 0 | H26: =[5]ENTRATA!I15 -> 0 | I26: =[5]ENTRATA!J15 -> 0 | J26: =[5]ENTRATA!K15 -> 0
C27: T.A.R.I. – Tributo Comunale sui rifiuti | F27: =[5]ENTRATA!G21 -> 158000 | G27: =[5]ENTRATA!H21 -> 0 | H27: =[5]ENTRATA!I21 -> 159000 | I27: =[5]ENTRATA!J21 -> 159500 | J27: =[5]ENTRATA!K21 -> 160000
C28: Addizionale Comunale IRPEF | F28: =[5]ENTRATA!G18 -> 64200 | G28: =[5]ENTRATA!H18 -> 0 | H28: =[5]ENTRATA!I18 -> 65000 | I28: =[5]ENTRATA!J18 -> 65500 | J28: =[5]ENTRATA!K18 -> 66000
C29: Tributi minori e compartecipazioni | F29: =[5]ENTRATA!G17+[5]ENTRATA!G20+[5]ENTRATA!G23 -> 8000 | G29: =[5]ENTRATA!H17+[5]ENTRATA!H20+[5]ENTRATA!H23 -> 0 | H29: =[5]ENTRATA!I17+[5]ENTRATA!I20+[5]ENTRATA!I23 -> 8550 | I29: =[5]ENTRATA!J17+[5]ENTRATA!J20+[5]ENTRATA!J23 -> 8550 | J29: =[5]ENTRATA!K17+[5]ENTRATA!K20+[5]ENTRATA!K23 -> 8550
C30: Recuperi evasione tributaria e fiscale | F30: =[5]ENTRATA!G16+[5]ENTRATA!G19+[5]ENTRATA!G14+[5]ENTRATA!G22 -> 29600 | G30: =[5]ENTRATA!H16+[5]ENTRATA!H19+[5]ENTRATA!H14+[5]ENTRATA!H22 -> 0 | H30: =[5]ENTRATA!I16+[5]ENTRATA!I19+[5]ENTRATA!I14+[5]ENTRATA!I22 -> 46250 | I30: =[5]ENTRATA!J16+[5]ENTRATA!J19+[5]ENTRATA!J14+[5]ENTRATA!J22 -> 37000 | J30: =[5]ENTRATA!K16+[5]ENTRATA!K19+[5]ENTRATA!K14+[5]ENTRATA!K22 -> 32000
C31: TOTALE | F31: =SUM(F25:F30) -> 826800 | G31: =SUM(G25:G30) -> 0 | H31: =SUM(H25:H30) -> 838800 | I31: =SUM(I25:I30) -> 831550 | J31: =SUM(J25:J30) -> 828550
B34: Descrizione missioni spesa corrente | F34: =+F24 -> 2017 | H34: =F34+1 -> 2018 | I34: =H34+1 -> 2019 | J34: =I34+1 -> 2020
B35: 01. Servizi istituzionali, generali e di gestione
B36: 02. Giustizia
B37: 03. Ordine pubblico e sicurezza
B38: 04. Istruzione e diritto allo studio
B39: 05. Tutela e valorizzazione dei beni e attività culturali
B40: 06. Politiche giovanili, sport e tempo libero
B41: 07. Turismo
B42: 08. Assetto del territorio ed edilizia abitativa
B43: 09. Sviluppo sostenibile e tutela del territorio e dell`ambiente
B44: 10. Trasporti e diritto alla mobilità
B45: 11. Soccorso civile
B46: 12. Diritti sociali, politiche sociali e famiglia
B47: 13. Tutela della salute
B48: 14. Sviluppo economico e competitività
B49: 15. Politiche per il lavoro e la formazione professionale
B50: 16. Agricoltura, politiche agroalimentari e pesca
B51: 17. Energia e diversificazione delle fonti energetiche
B52: 18. Relazioni con altre autonomie territoriali e locali
B53: 19. Relazioni internazionali
B54: 20. Fondi e accantonamenti
B55: 50. Debito pubblico
B56: 60. Anticipazioni finanziarie
B57: 99. Servizi per conto terzi
B58: TOTALE GENERALE | F58: =SUM(F35:F54) -> 0 | H58: =SUM(H35:H54) -> 0 | I58: =SUM(I35:I54) -> 0 | J58: =SUM(J35:J54) -> 0
A59: NECESSITÀ FINANZIARIE PER MISSIONI E PROGRAMMI
A61: Le risorse destinate a missioni e programmi
A62: Il finanziamento delle decisioni di spesa è il presupposto su cui poggia la successiva distribuzione delle risorse. Si può dare seguito ad un intervento che comporta un esborso solo in presenza della contropartita finanziaria. Questo significa che l'ente è autorizzato ad operare con specifici interventi di spesa solo se l'attività ha ottenuto la necessaria copertura finanziaria. Fermo restando il principio del pareggio, la decisione di impiegare le risorse nei diversi programmi in cui si articola la missione nasce da valutazioni di carattere politico o da esigenze di tipo tecnico. Parimenti riveste particolare importanza rispetto all’attività di programmazione politica e sulle scelte di bilancio il grado di rigidità del bilancio medesimo. Ossia più il bilancio è “ingessato” da spese fisse quali spesa di personale, spesa per interessi passivi e varie spese già contrattualizzate, minore sarà la possibilità di manovra dell’amministrazione, avendo a disposizione un’entità di risorse effettivamente disponibili molto ridotta. Ciascuna missione può richiedere interventi di parte corrente, rimborso prestiti o in c/capitale. Una missione può essere finanziata da risorse appartenenti allo stesso ambito (missione che si autofinanzia con risorse proprie) oppure, avendo un fabbisogno superiore alla propria disponibilità, deve essere finanziata dall'eccedenza di risorse reperite da altre missioni (la missione in avanzo finanzia quella in deficit). In generale la spesa corrente risulta finanziata dalla cosiddette entrate correnti costituite dalle entrate tributarie, dai trasferimenti correnti da altri enti (Stato – Regione – Provincia – Privati) e dalle entrate extra tributarie, ossia quelle generate dalla fornitura dei servizi comunali oppure dalla gestione del proprio patrimonio, dalle sanzioni C.d.S. etc.
B64: ENTRATE CORRENTI | F64: =F24 -> 2017 | H64: =F64+1 -> 2018 | I64: =H64+1 -> 2019 | J64: =I64+1 -> 2020
B65: Entrate correnti di natura tributaria, contributiva e perequativa | F65: =[5]PAREGGIO!C7 -> 826800 | G65: =[5]PAREGGIO!D7 -> 0 | H65: =[5]PAREGGIO!E7 -> 838800 | I65: =[5]PAREGGIO!F7 -> 831550 | J65: =[5]PAREGGIO!G7 -> 828550
B66: Trasferimenti correnti | F66: =[5]PAREGGIO!C8 -> 14700 | G66: =[5]PAREGGIO!D8 -> 0 | H66: =[5]PAREGGIO!E8 -> 16300 | I66: =[5]PAREGGIO!F8 -> 16300 | J66: =[5]PAREGGIO!G8 -> 16300
B67: Entrate extratributarie | F67: =[5]PAREGGIO!C9 -> 190269 | G67: =[5]PAREGGIO!D9 -> 0 | H67: =[5]PAREGGIO!E9 -> 174660 | I67: =[5]PAREGGIO!F9 -> 174950 | J67: =[5]PAREGGIO!G9 -> 176050
B68: Totale entrate correnti | F68: =SUM(F65:F67) -> 1031769 | H68: =SUM(H65:H67) -> 1029760 | I68: =SUM(I65:I67) -> 1022800 | J68: =SUM(J65:J67) -> 1020900
B69: Fondo Pluriennale Vincolato | F69: =[5]PAREGGIO!C4 -> 13005.83 | G69: =[5]PAREGGIO!D4 -> 0 | H69: =[5]PAREGGIO!E4 -> 0 | I69: =[5]PAREGGIO!F4 -> 0 | J69: =[5]PAREGGIO!G4 -> 0
B70: Avanzo di amministrazione applicato | F70: =[5]PAREGGIO!L14 -> 0 | G70: =[5]PAREGGIO!M14 -> 0 | H70: =[5]PAREGGIO!N14 -> 0 | I70: =[5]PAREGGIO!O14 -> 0 | J70: =[5]PAREGGIO!P14 -> 0
B71: TOTALE | F71: =SUM(F68:F70) -> 1044774.83 | H71: =SUM(H68:H70) -> 1029760 | I71: =SUM(I68:I70) -> 1022800 | J71: =SUM(J68:J70) -> 1020900
B73: SPESE | F73: =F64 -> 2017 | H73: =F73+1 -> 2018 | I73: =H73+1 -> 2019 | J73: =I73+1 -> 2020
B74: Spese correnti | F74: =[5]PAREGGIO!C19 -> 1014774.83 | G74: =[5]PAREGGIO!D19 -> 0 | H74: =[5]PAREGGIO!E19 -> 998510 | I74: =[5]PAREGGIO!F19 -> 991150 | J74: =[5]PAREGGIO!G19 -> 993900
B75: Rimborso di prestiti | F75: =[5]PAREGGIO!C22 -> 30000 | G75: =[5]PAREGGIO!D22 -> 0 | H75: =[5]PAREGGIO!E22 -> 31250 | I75: =[5]PAREGGIO!F22 -> 31650 | J75: =[5]PAREGGIO!G22 -> 27000
B76: TOTALE | F76: =SUM(F74:F75) -> 1044774.83 | H76: =SUM(H74:H75) -> 1029760 | I76: =SUM(I74:I75) -> 1022800 | J76: =SUM(J74:J75) -> 1020900
A78: Equilibri in termini di cassa
A79: Nonostante gli ormai cronici ritardi da parte del Ministero dell Interno nell'erogare quanto spettante annualmente in particolare ai Comuni, la buona liquidità dell'ente determinata principalmente dall'efficienza nella riscossione di imposte e tributi anche grazie alla puntualità dei contribuenti nell'adempiere alle scadenze prefissate, consente un buon margine operativo in termini di cassa, l'impegno per i prossimi esercizi sarà mantenere e migliorare la capacità di riscossione anche riguardo all'attività di accertamento e recupero dell'evasione tributaria.
A81: EQUILIBRI DI COMPETENZA NEL TRIENNIO
A83: Programmazione ed equilibri di bilancio
A84: Secondo l'attuale disciplina di bilancio, la giunta approva entro il 15 novembre di ogni anno lo schema di approvazione del bilancio finanziario relativo al triennio successivo, da sottoporre all’approvazione del consiglio. Nel caso in cui sopraggiungano variazioni del quadro normativo di riferimento, la giunta aggiorna sia lo schema di bilancio in corso di approvazione che il documento unico di programmazione (D.U.P.). Entro il successivo 31 dicembre il consiglio approva il bilancio che comprende le previsioni di competenza e cassa del primo esercizio e le previsioni di sola competenza degli esercizi successivi.
B86: ENTRATE | F86: =F64 -> 2017 | H86: =F86+1 -> 2018 | I86: =H86+1 -> 2019 | J86: =I86+1 -> 2020
B87: Entrate correnti di natura tributaria, contributiva e perequativa | F87: =[5]PAREGGIO!C7 -> 826800 | G87: =[5]PAREGGIO!D7 -> 0 | H87: =[5]PAREGGIO!E7 -> 838800 | I87: =[5]PAREGGIO!F7 -> 831550 | J87: =[5]PAREGGIO!G7 -> 828550
B88: Trasferimenti correnti | F88: =[5]PAREGGIO!C8 -> 14700 | G88: =[5]PAREGGIO!D8 -> 0 | H88: =[5]PAREGGIO!E8 -> 16300 | I88: =[5]PAREGGIO!F8 -> 16300 | J88: =[5]PAREGGIO!G8 -> 16300
B89: Entrate extratributarie | F89: =[5]PAREGGIO!C9 -> 190269 | G89: =[5]PAREGGIO!D9 -> 0 | H89: =[5]PAREGGIO!E9 -> 174660 | I89: =[5]PAREGGIO!F9 -> 174950 | J89: =[5]PAREGGIO!G9 -> 176050
B90: Entrate in conto capitale | F90: =[5]PAREGGIO!C10 -> 188748 | G90: =[5]PAREGGIO!D10 -> 0 | H90: =[5]PAREGGIO!E10 -> 134400 | I90: =[5]PAREGGIO!F10 -> 75000 | J90: =[5]PAREGGIO!G10 -> 75000
B91: Entrate da riduzione di attività finanziarie | F91: =[5]PAREGGIO!C11 -> 0 | G91: =[5]PAREGGIO!D11 -> 0 | H91: =[5]PAREGGIO!E11 -> 0 | I91: =[5]PAREGGIO!F11 -> 0 | J91: =[5]PAREGGIO!G11 -> 0
B92: Accensione prestiti | F92: =[5]PAREGGIO!C12 -> 0 | G92: =[5]PAREGGIO!D12 -> 0 | H92: =[5]PAREGGIO!E12 -> 0 | I92: =[5]PAREGGIO!F12 -> 0 | J92: =[5]PAREGGIO!G12 -> 0
B93: Anticipazioni da istituto tesoriere/cassiere | F93: =[5]PAREGGIO!C13 -> 0 | G93: =[5]PAREGGIO!D13 -> 0 | H93: =[5]PAREGGIO!E13 -> 0 | I93: =[5]PAREGGIO!F13 -> 0 | J93: =[5]PAREGGIO!G13 -> 0
B94: Entrate per conto terzi e partite di giro | F94: =[5]PAREGGIO!C14 -> 420750 | G94: =[5]PAREGGIO!D14 -> 0 | H94: =[5]PAREGGIO!E14 -> 414750 | I94: =[5]PAREGGIO!F14 -> 414750 | J94: =[5]PAREGGIO!G14 -> 414750
B95: Fondo Pluriennale Vincolato | F95: =[5]PAREGGIO!C4+[5]PAREGGIO!C5 -> 469972.53 | G95: =[5]PAREGGIO!D4+[5]PAREGGIO!D5 -> 0 | H95: =[5]PAREGGIO!E4+[5]PAREGGIO!E5 -> 0 | I95: =[5]PAREGGIO!F4+[5]PAREGGIO!F5 -> 0 | J95: =[5]PAREGGIO!G4+[5]PAREGGIO!G5 -> 0
B96: Avanzo di amministrazione applicato | F96: =[5]PAREGGIO!C3 -> 40000 | G96: =[5]PAREGGIO!D3 -> 0 | H96: =[5]PAREGGIO!E3 -> 0 | I96: =[5]PAREGGIO!F3 -> 0 | J96: =[5]PAREGGIO!G3 -> 0
B97: TOTALE | F97: =SUM(F87:F96) -> 2151239.53 | H97: =SUM(H87:H96) -> 1578910 | I97: =SUM(I87:I96) -> 1512550 | J97: =SUM(J87:J96) -> 1510650
B99: SPESE | F99: =F86 -> 2017 | H99: =H86 -> 2018 | I99: =I86 -> 2019 | J99: =J86 -> 2020
B100: Spese correnti | F100: =[5]PAREGGIO!C19 -> 1014774.83 | G100: =[5]PAREGGIO!D19 -> 0 | H100: =[5]PAREGGIO!E19 -> 998510 | I100: =[5]PAREGGIO!F19 -> 991150 | J100: =[5]PAREGGIO!G19 -> 993900
B101: Spese in conto capitale | F101: =[5]PAREGGIO!C20 -> 685714.7 | G101: =[5]PAREGGIO!D20 -> 0 | H101: =[5]PAREGGIO!E20 -> 134400 | I101: =[5]PAREGGIO!F20 -> 75000 | J101: =[5]PAREGGIO!G20 -> 75000
B102: Spese da incremento attività finanziarie | F102: =[5]PAREGGIO!C21 -> 0 | G102: =[5]PAREGGIO!D21 -> 0 | H102: =[5]PAREGGIO!E21 -> 0 | I102: =[5]PAREGGIO!F21 -> 0 | J102: =[5]PAREGGIO!G21 -> 0
B103: Rimborso di prestiti | F103: =[5]PAREGGIO!C22 -> 30000 | G103: =[5]PAREGGIO!D22 -> 0 | H103: =[5]PAREGGIO!E22 -> 31250 | I103: =[5]PAREGGIO!F22 -> 31650 | J103: =[5]PAREGGIO!G22 -> 27000
B104: Chiusura anticipazioni da istituto tesoriere/cassiere | F104: =[5]PAREGGIO!C23 -> 0 | G104: =[5]PAREGGIO!D23 -> 0 | H104: =[5]PAREGGIO!E23 -> 0 | I104: =[5]PAREGGIO!F23 -> 0 | J104: =[5]PAREGGIO!G23 -> 0
B105: Spese per conto terzi e partite di giro | F105: =[5]PAREGGIO!C25 -> 420750 | G105: =[5]PAREGGIO!D25 -> 0 | H105: =[5]PAREGGIO!E25 -> 414750 | I105: =[5]PAREGGIO!F25 -> 414750 | J105: =[5]PAREGGIO!G25 -> 414750
B106: Disavanzo applicato | F106: 0 | H106: 0 | I106: 0 | J106: 0
B107: TOTALE | F107: =SUM(F100:F106) -> 2151239.53 | H107: =SUM(H100:H106) -> 1578910 | I107: =SUM(I100:I106) -> 1512550 | J107: =SUM(J100:J106) -> 1510650
A109: PROGRAMMAZIONE ED EQUILIBRI FINANZIARI
A111: Il Consiglio Comunale, con l'approvazione politica di questo importante documento di programmazione, identifica gli obiettivi generali e destina le conseguenti risorse di bilancio. Il tutto, rispettando nell'intervallo di tempo richiesto dalla programmazione il pareggio tra risorse destinate (entrate) e relativi impieghi (uscite).
A112: L'Amministrazione può agire in quattro direzioni ben definite, la gestione corrente, gli interventi negli investimenti, l'utilizzo dei movimenti di fondi e la registrazione dei servizi per c/terzi, dove ognuno di questi ambiti può essere inteso come un'entità autonoma. Di norma, le scelte inerenti i programmi riguardano solo i primi due contesti (corrente e investimenti) perché i servizi c/terzi sono semplici partite di giro, mentre i movimenti di fondi interessano operazioni finanziarie di entrata e uscita che si compensano.
A113: VINCOLI PAREGGIO DI BILANCIO
A114: Non va sottaciuto che il notevole sforzo messo in atto per riuscire a programmare l'attività dell'ente può essere vanificato proprio dal fatto che questa normativa, con cadenza quasi annuale, viene fortemente rimaneggiata dallo Stato. La norma, che nel corso dei diversi anni ha subito vistosi cambiamenti, nella versione più recente tende a conseguire un saldo cumulativo (obiettivo programmatico) di entrate ed uscite sia di parte corrente che in c/capitale denominato “Saldo finanziario di competenza mista". Il mancato raggiungimento dell'obiettivo comporta per l'ente l'irrogazione di pesanti sanzioni. In primis, stante la difficoltà di modificare in riduzione la spesa corrente degli enti, specialmente per quanto attiene i servizi, il peso dei vincoli è stato trasferito sulla spesa di investimento, riducendola di fatto nella maggior parte dei casi, anche per carenza di risorse alla mera sopravvivenza manutentiva.
C116: PAREGGIO AI FINI DEL PATTO | F116: =+F99 -> 2017 | G116: =+G99 -> 0 | H116: =+H99 -> 2018 | I116: =+I99 -> 2019 | J116: =+J99 -> 2020
C117: FONDO PLURIENNALE VINCOLATO | F117: =[5]PAREGGIO!C4+[5]PAREGGIO!C5 -> 469972.53 | G117: =+[5]PAREGGIO!D32 -> 0 | H117: =+[5]PAREGGIO!E32 -> 0 | I117: =+[5]PAREGGIO!F32 -> 0 | J117: =+[5]PAREGGIO!G32 -> 0
C118: ENTRATE | F118: =+[5]PAREGGIO!C33 -> 1220517 | G118: =+[5]PAREGGIO!D33 -> 0 | H118: =+[5]PAREGGIO!E33 -> 1164160 | I118: =+[5]PAREGGIO!F33 -> 1097800 | J118: =+[5]PAREGGIO!G33 -> 1095900
C119: SPESE | F119: =+[5]PAREGGIO!C34 -> 1700489.53 | G119: =+[5]PAREGGIO!D34 -> 0 | H119: =+[5]PAREGGIO!E34 -> 1132910 | I119: =+[5]PAREGGIO!F34 -> 1066150 | J119: =+[5]PAREGGIO!G34 -> 1068900
C120: DIFFERENZA | F120: =F118-F119+F117 -> -10000 | H120: =H118-H119+H117 -> 31250 | I120: =I118-I119+I117 -> 31650 | J120: =J118-J119+J117 -> 27000
C121: SOMME ESCLUSE | F121: =+[5]PAREGGIO!C36 -> 15200 | G121: =+[5]PAREGGIO!D36 -> 0 | H121: =+[5]PAREGGIO!E36 -> 15000 | I121: =+[5]PAREGGIO!F36 -> 16000 | J121: =+[5]PAREGGIO!G36 -> 17500
C122: SALDO | F122: =+F120+F121 -> 5200 | H122: =+H120+H121 -> 46250 | I122: =+I120+I121 -> 47650 | J122: =+J120+J121 -> 44500
A124: FINANZIAMENTO DEL BILANCIO INVESTIMENTI
A126: L'equilibrio del bilancio investimenti
A127: Come per la parte corrente, anche il budget richiesto dalle opere pubbliche presuppone il totale finanziamento della spesa. Ma a differenza della prima, la componente destinata agli investimenti è influenzata dalla disponibilità di risorse concesse dagli altri enti pubblici nella forma di contributi in C/capitale oppure da altre entrate proprie dell’ente aventi natura tale da finanziare opere, investimenti, acquisizioni, manutenzioni straordinarie etc.
A129: Le risorse destinate agli investimenti
A130: Oltre che a garantire il funzionamento della struttura, il comune può destinare le proprie entrate per acquisire migliorare le dotazioni infrastrutturali. In questo modo si viene ad assicurare un livello di mezzi strumentali tali da garantire l'erogazione di servizi di buona qualità. Le risorse di investimento possono essere gratuite, come i contributi in C/capitale, le alienazioni di beni, il risparmio di eccedenze correnti o l'avanzo di esercizi precedenti, o avere natura onerosa, come l'indebitamento. In questo caso, il rimborso del mutuo inciderà sul bilancio corrente caso, per tutto il periodo di ammortamento del prestito. Ed ancora possono essere disponibili risorse proprie che derivano da proventi di Oneri di Urbanizzazione, da monetizzazione di aree a servizi, da concessioni cimiteriali etc.
A132: ENTRATE TRIBUTARIE (valutazione e andamento)
A134: Federalismo fiscale e solidarietà sociale
A135: L'impegno nell'erogare i servizi alla collettività richiede la disponibilità di risorse adeguate ai compiti che la società affida all'ente locale. Questi mezzi possono provenire dallo Stato oppure, in un'ottica ormai tesa al decentramento, direttamente dal territorio servito. Più ricchezza resta nel territorio che la produce maggiore è il ricorso al concetto di federalismo fiscale; più incisiva è la ridistribuzione di questa ricchezza verso zone meno prosperose, maggiore è il ricorso alla solidarietà sociale. Solidarietà sociale e costi sociali che la comunità si assume anche a livello locale sia per quanto attiene al welfare e sia per quanto attiene alla quota di costo dei servizi non coperta dagli utenti per mezzo delle tariffe. Negli ultimi anni, con il crescere dell’autonomia finanziaria, si è cercato di dare più forza all’autonomia impositiva. L'ente può orientarsi verso una politica di gestione dei tributi che garantisca un gettito adeguato al proprio fabbisogno ma senza ignorare i princìpi di equità contributiva e solidarietà sociale. Queste sono le regole di base che si scontrano con la dura realtà dei tagli alle risorse comunali, vuoi per le fasi di “Spending review” in capo agli enti locali, vuoi per le modifiche al sistema delle risorse nel passaggio da ICI ad IMU e da IMU all’avvento della TASI ed al sistema di compensazione tra enti che dalla nuova situazione, in applicazione dell’aliquota base, hanno ricevuto benefici.
A136: Uno sguardo ai tributi locali
A137: Il comune può intervenire con scelte di politica tributaria locale nel campo applicativo di talune imposte/ tributi, quali la IUC (che comprende IMU, TARI e TASI), l'addizionale sull'IRPEF e l'imposta sulla pubblicità e sulle pubbliche affissioni. Per quanto riguarda la concreta modalità di accertamento di queste entrate, i criteri che portano a giudicare positivamente il lavoro del comune sono essenzialmente due: la capacità di contrastare l’evasione e quella di riscuotere il credito con rapidità. Questi comportamenti sono un preciso indice di giustizia contributiva e, allo stesso tempo, denotano lo sforzo dell'Amministrazione teso ad aumentare la solidità del bilancio, condizione anch'essa irrinunciabile, purtroppo non sempre percepita nella giusta misura dai non addetti ai lavori. Restano di competenza tributi minori quali i diritti sulle pubbliche affissioni e la quota di diritti di escavazione ed ancora il recupero di gettito da ex ruoli TARSU. Riportando nell’ambito della competenza comunale la TARI (ex tassa raccolta rifiuti e poi TIA) si ritiene necessaria una revisione della banca dati e l’attivazione di iniziative sia tese al recupero di eventuali sacche di evasione sia di iniziative volte a migliorare le tempistiche di incasso e la percentuale di realizzazione dei medesimi. L’attività di accertamento sia sulle poste tributarie residue sia su quelle di nuova gestione riveste importanza primaria nell’abito della fiscalità locale e tale sarà l’orientamento operativo dell’ente anche nel prossimo futuro
C139: Entrate correnti di natura tributaria, contributiva e perequativa | H139: =H99 -> 2018 | I139: =H139+1 -> 2019 | J139: =I139+1 -> 2020
C140: Tipologia 101 - Imposte, tasse e proventi assimilati | H140: =[5]ENTRATA!I24 -> 838800 | I140: =[5]ENTRATA!J24 -> 831550 | J140: =[5]ENTRATA!K24 -> 828550
C141: Tipologia 104 - Compartecipazioni di tributi | H141: 0 | I141: 0 | J141: 0
C142: Tipologia 301 - Fondi perequativi da Amministrazioni Centrali | H142: =[5]ENTRATA!H28 -> 0 | I142: =[5]ENTRATA!I28 -> 0 | J142: =[5]ENTRATA!J28 -> 0
C143: Tipologia 302 - Fondi perequativi dalla Regione o Provincia autonoma | H143: 0 | I143: 0 | J143: 0
C144: Totale | H144: =SUM(H140:H143) -> 838800 | I144: =SUM(I140:I143) -> 831550 | J144: =SUM(J140:J143) -> 828550
A146: L'eventuale riforma delle leve impositive degli Enti Locali promessa recentemente dal governo potrebbe modificare radicalmente l'impostazione delle voci di entrata dei bilanci comunali, tuttavia l'ammontare complessivo delle risorse in entratà dovrà mantenere la stessa entità se non latro a garanzia del finanziamento delle spese per i servizi indispensabili svolti dall'ente.
A148: TRASFERIMENTI CORRENTI (valutazione e andamento)
A150: Nella direzione del federalismo fiscale
A151: Questo genere di entrate è e sarà via via una quota residuale rispetto al quadro generale delle entrate. E' opportuno evidenziare come, a seguito del federalismo fiscale, le finanze degli enti locali siano passate da una finanza derivata ad una finanza propria, lo Stato in particolare interviene con una perequazione delle risorse trasferite ai comuni tramite il Fondo di Solidarietà comunale che dovrebbe altresì garantire la sostanziale invarianza delle risorse derivanti dalla fiscalità locale e dall'influenza che i provvedimenti a livello centrale determinano relativamente al gettito delle imposte locali stesse.
C153: Trasferimenti correnti | H153: =$H$139 -> 2018 | I153: =H153+1 -> 2019 | J153: =I153+1 -> 2020
C154: Tipologia 101 - Trasferimenti correnti da Amministrazioni pubbliche | H154: =[5]ENTRATA!I41+[5]ENTRATA!I46 -> 16300 | I154: =[5]ENTRATA!J41+[5]ENTRATA!J46 -> 16300 | J154: =[5]ENTRATA!K41+[5]ENTRATA!K46 -> 16300
C155: Tipologia 102 - Trasferimenti correnti da Famiglie | H155: 0 | I155: 0 | J155: 0
C156: Tipologia 103 - Trasferimenti correnti da Imprese | H156: 0 | I156: 0 | J156: 0
C157: Tipologia 104 - Trasferimenti correnti da Istituzioni Sociali Private | H157: 0 | I157: 0 | J157: 0
C158: Tipologia 105 - Trasferimenti correnti dall'Unione Europea e dal Resto del Mondo | H158: 0 | I158: 0 | J158: 0
C159: Totale | H159: =SUM(H154:H158) -> 16300 | I159: =SUM(I154:I158) -> 16300 | J159: =SUM(J154:J158) -> 16300
A162: Valutazione
A165: ENTRATE EXTRA-TRIBUTARIE (valutazione e andamento)
A167: Entrate proprie e imposizione tariffaria
A168: Questo genere di entrate è una significativa fonte di finanziamento del bilancio, reperita con mezzi propri e ottenuta con l'applicazione di tariffe a tutta una serie di prestazioni rese ai singoli cittadini. Si tratta di servizi a domanda individuale, istituzionali e produttivi. Le altre risorse che confluiscono in questo comparto sono i proventi dei beni in affitto, gli utili ed i dividendi delle partecipazioni e altre entrate minori. Il comune, nel momento in cui pianifica l'attività per l'anno successivo, sceglie la propria politica tariffaria e individua la percentuale di copertura del costo dei servizi a domanda individuale che sarà finanziata con tariffe e altre entrate specifiche. L'Amministrazione rende così noto alla collettività l'entità del costo che tutti saranno chiamati a coprire per rendere possibile l'erogazione di certe prestazioni ad un prezzo sociale. Il cittadino, però, non è obbligato ad utilizzare questo tipo di prestazioni ma se lo fa, deve pagare il corrispettivo richiesto. Questo genere di entrate è una significativa fonte di finanziamento del bilancio, reperita con mezzi propri e ottenuta con l'applicazione di tariffe a tutta una serie di prestazioni rese ai singoli cittadini. Si tratta di servizi a domanda individuale, istituzionali e produttivi.
A169: Le altre risorse che confluiscono in questo comparto sono i proventi dei beni in affitto, gli eventuali utili ed i dividendi delle partecipazioni, i proventi delle sanzioni C.d.S., i proventi dei canoni di occupazione suolo pubblico e pubblicità, i proventi dei diritti per costo pratica, i rimborsi di vario genere ed altre entrate minori.
A170: Il comune, nel momento in cui pianifica l'attività per l'anno successivo, sceglie la propria politica tariffaria e individua la percentuale di copertura del costo dei servizi a domanda individuale che sarà finanziata con tariffe e altre entrate specifiche. L'Amministrazione rende così noto alla collettività l'entità del costo che tutti saranno chiamati a coprire per rendere possibile l'erogazione di certe prestazioni ad un prezzo sociale. Il cittadino, però, non è obbligato ad utilizzare questo tipo di prestazioni ma se lo fa, deve pagare il corrispettivo richiesto
C172: Entrate extratributarie | D172: Rendiconto | E172: Rendiconto | F172: Stanziamento | H172: =$H$139 -> 2018 | I172: =H172+1 -> 2019 | J172: =I172+1 -> 2020
C173: Tipologia 100 - Vendita di beni e servizi e proventi derivanti dalla gestione dei beni | H173: =[5]ENTRATA!I68+[5]ENTRATA!I78 -> 120960 | I173: =[5]ENTRATA!J68+[5]ENTRATA!J78 -> 121550 | J173: =[5]ENTRATA!K68+[5]ENTRATA!K78 -> 121650
C174: Tipologia 200 - Proventi derivanti dall'attività di controllo e repressionedelle irregolarità e degl | D174: 36328.02 | E174: 2002.28 | F174: 1000 | H174: =[5]ENTRATA!I84 -> 42000 | I174: =[5]ENTRATA!J84 -> 42000 | J174: =[5]ENTRATA!K84 -> 43000
C175: Tipologia 300 - Interessi attivi | D175: 225.7 | E175: 0 | F175: 500 | H175: =[5]ENTRATA!I90 -> 400 | I175: =[5]ENTRATA!J90 -> 100 | J175: =[5]ENTRATA!K90 -> 100
C176: Tipologia 400 - Altre entrate da redditi da capitale | D176: 0 | E176: 0 | F176: 0 | H176: 0 | I176: 0 | J176: 0
C177: Tipologia 500 - Rimborsi e altre entrate correnti | D177: 22321.21 | E177: 16041.1 | F177: 41540 | H177: =[5]ENTRATA!I102+[5]ENTRATA!I111+[5]ENTRATA!I115 -> 10800 | I177: =[5]ENTRATA!J102+[5]ENTRATA!J111+[5]ENTRATA!J115 -> 10800 | J177: =[5]ENTRATA!K102+[5]ENTRATA!K111+[5]ENTRATA!K115 -> 10800
C178: Totale | H178: =SUM(H173:H177) -> 174160 | I178: =SUM(I173:I177) -> 174450 | J178: =SUM(J173:J177) -> 175550
A179: Valutazione
A182: ENTRATE IN CONTO CAPITALE (valutazione e andamento)
A184: Investire senza aumentare l'indebitamento
A185: I trasferimenti in C/capitale sono risorse a titolo gratuito concesse al comune da entità pubbliche, come lo Stato, la regione o la provincia, oppure erogati da soggetti privati. Queste entrate, spesso rilevanti, possono essere destinate alla costruzione di nuove opere pubbliche o alla manutenzione straordinaria del patrimonio. Rientrano in questa categoria anche le alienazioni dei beni comunali, un'operazione il cui introito dev'essere sempre reinvestito in spese d'investimento, conservando pertanto l'originaria destinazione oppure ad estinzione anticipata del debito finanziario residuo con analoga finalità di mantenere inalterato il patrimonio dell’ente, agendo dal lato dei “debiti” anziché dei cespiti. Quello che è nato come un investimento, infatti, può essere alienato, ma il corrispondente ricavo di vendita non può diventare un mezzo di finanziamento del bilancio di parte corrente, salvo l'esistenza di eccezioni espressamente previste dalla legge.
C187: Entrate in conto capitale | H187: =$H$139 -> 2018 | I187: =H187+1 -> 2019 | J187: =I187+1 -> 2020
C188: Tipologia 100 - Tributi in conto capitale | H188: 0 | I188: 0 | J188: 0
C189: Tipologia 200 - Contributi agli investimenti | H189: =[5]ENTRATA!I130 -> 5400 | I189: =[5]ENTRATA!J130 -> 0 | J189: =[5]ENTRATA!K130 -> 0
C190: Tipologia 300 - Altri trasferimenti in conto capitale | H190: 0 | I190: 0 | J190: 0
C191: Tipologia 400 - Entrate da alienazione di beni materiali e immateriali | H191: =+[5]ENTRATA!I133 -> 4000 | I191: 0 | J191: 0
C192: Tipologia 500 - Altre entrate in conto capitale | H192: =+[5]ENTRATA!I142+[5]ENTRATA!I146 -> 125000 | I192: =+[5]ENTRATA!J142+[5]ENTRATA!J146 -> 75000 | J192: =+[5]ENTRATA!K142+[5]ENTRATA!K146 -> 75000
C193: Totale | H193: =SUM(H188:H192) -> 134400 | I193: =SUM(I188:I192) -> 75000 | J193: =SUM(J188:J192) -> 75000
A194: Valutazione
A197: RIDUZIONE DI ATTIVITÀ FINANZIARIE (valutazione e andamento)
A199: Riduzione di attività finanziarie
A200: Rientrano nell'insieme le alienazioni di attività finanziarie, le riscossioni di crediti a breve, medio e lungo termine, oltre la voce residuale delle altre entrate per riduzioni di attività finanziarie. Si tratta, in prevalenza, di operazioni spesso connesse ai movimenti di fondi e pertanto non legate ad effettive scelte di programmazione politica o amministrativa. I movimenti di fondi, infatti, consistono nella chiusura di una posizione debitoria e creditoria, di solito a saldo zero, a meno che l'estinzione non produca un guadagno (plusvalenza) o una perdita (minusvalenza) di valore. Una voce interessante di questo aggregato sono le alienazioni di attività finanziarie, dato che in esso confluiscono le alienazioni di partecipazioni, di fondi comuni d'investimento e la dismissione di obbligazioni. Non sono programmate nel triennio queste tipologie di interventi
C202: Riduzione di attività finanziarie | H202: =$H$139 -> 2018 | I202: =H202+1 -> 2019 | J202: =I202+1 -> 2020
C203: Tipologia 100 - Alienazione di attività finanziarie | H203: 0 | I203: 0 | J203: 0
C204: Tipologia 200 - Riscossione crediti di breve termine | D204: Tipologia 200 - Riscossione crediti di breve termine | E204: Tipologia 200 - Riscossione crediti di breve termine | F204: Tipologia 200 - Riscossione crediti di breve termine | H204: 0 | I204: 0 | J204: 0
C205: Tipologia 300 - Riscossione crediti di medio-lungo termine | D205: Tipologia 300 - Riscossione crediti di medio-lungo termine | E205: Tipologia 300 - Riscossione crediti di medio-lungo termine | F205: Tipologia 300 - Riscossione crediti di medio-lungo termine | H205: 0 | I205: 0 | J205: 0
C206: Tipologia 400 - Altre entrate per riduzione di attività finanziarie | D206: Tipologia 400 - Altre entrate per riduzione di attività finanziarie | E206: Tipologia 400 - Altre entrate per riduzione di attività finanziarie | F206: Tipologia 400 - Altre entrate per riduzione di attività finanziarie | H206: 0 | I206: 0 | J206: 0
C207: Totale | H207: =SUM(H203:H206) -> 0 | I207: =SUM(I203:I206) -> 0 | J207: =SUM(J203:J206) -> 0
A208: Valutazione
A209: Non si prevede alcuna attività finanziaria.
A211: ACCENSIONE PRESTITI NETTI (valutazione e andamento)
A213: Il ricorso al credito oneroso
A214: Le risorse proprie del comune e quelle ottenute gratuitamente da terzi, come i contributi in C/capitale, possono non essere sufficienti a coprire il fabbisogno richiesto dagli investimenti. In tale circostanza, il ricorso al mercato finanziario può essere un'alternativa utile ma sicuramente onerosa. La contrazione dei mutui onerosi comporta, a partire dall'inizio dell'ammortamento e fino alla data di estinzione del prestito, il pagamento delle quote annuali per interesse e per il rimborso progressivo del capitale. Questi importi costituiscono, per il bilancio del comune, delle spese di natura corrente la cui entità va finanziata con altrettante risorse ordinarie. L'equilibrio del bilancio di parte corrente, infatti, si fonda sull'accostamento tra i primi tre titoli delle entrate (tributi, trasferimenti correnti, extra tributarie) ed i titoli primo e terzo delle uscite (spese correnti e rimborso mutui). Il peso del debito, inoltre, influisce sulla rigidità del bilancio comunale.
C216: Accensione Prestiti | H216: =$H$139 -> 2018 | I216: =H216+1 -> 2019 | J216: =I216+1 -> 2020
C217: Tipologia 100 - Emissione di titoli obbligazionari | H217: 0 | I217: 0 | J217: 0
C218: Tipologia 200 - Accensione prestiti a breve termine | H218: 0 | I218: 0 | J218: 0
C219: Tipologia 300 - Accensione mutui e altri finanziamenti a medio lungo termine | H219: 0 | I219: 0 | J219: 0
C220: Tipologia 400 - Altre forme di indebitamento | H220: 0 | I220: 0 | J220: 0
C221: Totale | H221: =SUM(H217:H220) -> 0 | I221: =SUM(I217:I220) -> 0 | J221: =SUM(J217:J220) -> 0
A222: Valutazione
A223: Non viene prevista alcuna accensione di mutui o prestiti.
A226: FABBISOGNO PER SINGOLA MISSIONE
A228: Il budget di spesa dei programmi
A229: L'Amministrazione pianifica l'attività e formalizza le scelte prese nel documento di programmazione approvato dal consiglio. Con questa delibera, votata a maggioranza politica, sono identificati sia gli obiettivi futuri che le risorse necessarie al loro effettivo conseguimento. Il bilancio è pertanto suddiviso in vari programmi a cui corrispondono i budget di spesa stanziati per rendere possibile la loro concreta realizzazione. Obiettivi e risorse diventano così i riferimenti ed i vincoli che delineano l'attività di gestione dell'azienda comunale.
A230: Di seguito l'analisi, per ciascuna missione e programma del bilancio, degli obiettivi che l'Amministrazione intende realizzare negli esercizi considerati nel bilancio di previsione pluriennale, e l'indicazione in sintesi delle risorse necessarie alla realizzazione degli stessi oltre che degli impegni già assunti e le relative forme di finanziamento.
B232: Descrizione missioni spesa | F232: =H216-1 -> 2017 | H232: =F232+1 -> 2018 | I232: =H232+1 -> 2019 | J232: =I232+1 -> 2020
B233: 01. Servizi istituzionali, generali e di gestione | F233: =+[5]SPESA!H683 -> 943122.9 | G233: =+[5]SPESA!I683 -> 0 | H233: =+[5]SPESA!J683 -> 388690 | I233: =+[5]SPESA!K683 -> 406200 | J233: =+[5]SPESA!L683 -> 405200
B234: 02. Giustizia | F234: =+[5]SPESA!H684 -> 0 | G234: =+[5]SPESA!I684 -> 0 | H234: =+[5]SPESA!J684 -> 0 | I234: =+[5]SPESA!K684 -> 0 | J234: =+[5]SPESA!L684 -> 0
B235: 03. Ordine pubblico e sicurezza | F235: =+[5]SPESA!H685 -> 98828 | G235: =+[5]SPESA!I685 -> 0 | H235: =+[5]SPESA!J685 -> 48500 | I235: =+[5]SPESA!K685 -> 48600 | J235: =+[5]SPESA!L685 -> 48600
B236: 04. Istruzione e diritto allo studio | F236: =+[5]SPESA!H686 -> 123900 | G236: =+[5]SPESA!I686 -> 0 | H236: =+[5]SPESA!J686 -> 129700 | I236: =+[5]SPESA!K686 -> 130500 | J236: =+[5]SPESA!L686 -> 130500
B237: 05. Tutela e valorizzazione dei beni e attività culturali | F237: =+[5]SPESA!H687 -> 16560 | G237: =+[5]SPESA!I687 -> 0 | H237: =+[5]SPESA!J687 -> 35600 | I237: =+[5]SPESA!K687 -> 17200 | J237: =+[5]SPESA!L687 -> 17200
B238: 06. Politiche giovanili, sport e tempo libero | F238: =+[5]SPESA!H688 -> 30880 | G238: =+[5]SPESA!I688 -> 0 | H238: =+[5]SPESA!J688 -> 15470 | I238: =+[5]SPESA!K688 -> 8500 | J238: =+[5]SPESA!L688 -> 8500
B239: 07. Turismo | F239: =+[5]SPESA!H689 -> 2500 | G239: =+[5]SPESA!I689 -> 0 | H239: =+[5]SPESA!J689 -> 2500 | I239: =+[5]SPESA!K689 -> 2500 | J239: =+[5]SPESA!L689 -> 2500
B240: 08. Assetto del territorio ed edilizia abitativa | F240: =+[5]SPESA!H690 -> 10160 | G240: =+[5]SPESA!I690 -> 0 | H240: =+[5]SPESA!J690 -> 15230 | I240: =+[5]SPESA!K690 -> 0 | J240: =+[5]SPESA!L690 -> 0
B241: 09. Sviluppo sostenibile e tutela del territorio e dell`ambiente | F241: =+[5]SPESA!H691 -> 142519.63 | G241: =+[5]SPESA!I691 -> 0 | H241: =+[5]SPESA!J691 -> 200700 | I241: =+[5]SPESA!K691 -> 160510 | J241: =+[5]SPESA!L691 -> 160510
B242: 10. Trasporti e diritto alla mobilità | F242: =+[5]SPESA!H692 -> 213880 | G242: =+[5]SPESA!I692 -> 0 | H242: =+[5]SPESA!J692 -> 161100 | I242: =+[5]SPESA!K692 -> 160450 | J242: =+[5]SPESA!L692 -> 160450
B243: 11. Soccorso civile | F243: =+[5]SPESA!H693 -> 1580 | G243: =+[5]SPESA!I693 -> 0 | H243: =+[5]SPESA!J693 -> 2200 | I243: =+[5]SPESA!K693 -> 2300 | J243: =+[5]SPESA!L693 -> 2300
B244: 12. Diritti sociali, politiche sociali e famiglia | F244: =+[5]SPESA!H694 -> 73466 | G244: =+[5]SPESA!I694 -> 0 | H244: =+[5]SPESA!J694 -> 85500 | I244: =+[5]SPESA!K694 -> 80000 | J244: =+[5]SPESA!L694 -> 85000
B245: 13. Tutela della salute | F245: =+[5]SPESA!H695 -> 0 | G245: =+[5]SPESA!I695 -> 0 | H245: =+[5]SPESA!J695 -> 0 | I245: =+[5]SPESA!K695 -> 0 | J245: =+[5]SPESA!L695 -> 0
B246: 14. Sviluppo economico e competitività | F246: =+[5]SPESA!H696 -> 0 | G246: =+[5]SPESA!I696 -> 0 | H246: =+[5]SPESA!J696 -> 0 | I246: =+[5]SPESA!K696 -> 0 | J246: =+[5]SPESA!L696 -> 0
B247: 15. Politiche per il lavoro e la formazione professionale | F247: =+[5]SPESA!H697 -> 0 | G247: =+[5]SPESA!I697 -> 0 | H247: =+[5]SPESA!J697 -> 0 | I247: =+[5]SPESA!K697 -> 0 | J247: =+[5]SPESA!L697 -> 0
B248: 16. Agricoltura, politiche agroalimentari e pesca | F248: =+[5]SPESA!H698 -> 0 | G248: =+[5]SPESA!I698 -> 0 | H248: =+[5]SPESA!J698 -> 0 | I248: =+[5]SPESA!K698 -> 0 | J248: =+[5]SPESA!L698 -> 0
B249: 17. Energia e diversificazione delle fonti energetiche | F249: =+[5]SPESA!H699 -> 0 | G249: =+[5]SPESA!I699 -> 0 | H249: =+[5]SPESA!J699 -> 0 | I249: =+[5]SPESA!K699 -> 0 | J249: =+[5]SPESA!L699 -> 0
B250: 18. Relazioni con altre autonomie territoriali e locali | F250: =+[5]SPESA!H700 -> 0 | G250: =+[5]SPESA!I700 -> 0 | H250: =+[5]SPESA!J700 -> 0 | I250: =+[5]SPESA!K700 -> 0 | J250: =+[5]SPESA!L700 -> 0
B251: 19. Relazioni internazionali | F251: =+[5]SPESA!H701 -> 0 | G251: =+[5]SPESA!I701 -> 0 | H251: =+[5]SPESA!J701 -> 0 | I251: =+[5]SPESA!K701 -> 0 | J251: =+[5]SPESA!L701 -> 0
B252: 20. Fondi e accantonamenti | F252: =+[5]SPESA!H702 -> 19248 | G252: =+[5]SPESA!I702 -> 0 | H252: =+[5]SPESA!J702 -> 25420 | I252: =+[5]SPESA!K702 -> 28640 | J252: =+[5]SPESA!L702 -> 28890
B253: 50. Debito pubblico | F253: =+[5]SPESA!H703 -> 53845 | G253: =+[5]SPESA!I703 -> 0 | H253: =+[5]SPESA!J703 -> 53550 | I253: =+[5]SPESA!K703 -> 52400 | J253: =+[5]SPESA!L703 -> 46250
B254: 60. Anticipazioni finanziarie | F254: =+[5]SPESA!H704 -> 0 | G254: =+[5]SPESA!I704 -> 0 | H254: =+[5]SPESA!J704 -> 0 | I254: =+[5]SPESA!K704 -> 0 | J254: =+[5]SPESA!L704 -> 0
B255: 99. Servizi per conto terzi | F255: =+[5]SPESA!H705 -> 420750 | G255: =+[5]SPESA!I705 -> 0 | H255: =+[5]SPESA!J705 -> 414750 | I255: =+[5]SPESA!K705 -> 414750 | J255: =+[5]SPESA!L705 -> 414750
B256: TOTALE GENERALE | F256: =SUM(F233:F255) -> 2151239.53 | H256: =SUM(H233:H255) -> 1578910 | I256: =SUM(I233:I255) -> 1512550 | J256: =SUM(J233:J255) -> 1510650 | N256: =+[5]PAREGGIO!C26-aggdupcontabile!F256 -> 0 | O256: =+[5]PAREGGIO!E26-aggdupcontabile!H256 -> 0 | P256: =+[5]PAREGGIO!F26-aggdupcontabile!I256 -> 0 | Q256: =+[5]PAREGGIO!G26-aggdupcontabile!J256 -> 0
A259: MISSIONE 01 – Servizi istituzionali, generali e di gestione e relativi programmi
... 223 more rows
